bitfinex-derivatives/quotes_ETHF0:USTF0_20251223
["timestamp","ask_amount","ask_price","bid_price","bid_amount"]
[1766470913032,3.382,2957.7,2956.8,3.382]
[1766470913429,3.382,2957.7,2956.9,9.835]
[1766470913725,3.382,2957.7,2957.0,3.383]
[1766470913933,3.38471161,2957.7,2957.0,3.383]
[1766470916037,2.26636303,2957.6,2956.9,3.383]
[1766470917435,2.26636303,2957.2,2956.5,0.00507159]
[1766470917635,2.26636303,2957.2,2955.1,0.16931]
[1766470917636,0.00271161,2957.7,2956.4,3.383]
[1766470917839,9.253,2957.6,2956.4,3.383]
[1766470918033,11.51936303,2957.6,2956.4,9.834]
[1766470918233,11.51936303,2957.6,2956.0,40.8]
[1766470918436,11.51936303,2957.6,2956.2,9.834]
[1766470918635,0.00507159,2957.1,2956.6,0.00507159]
[1766470918942,2.26636303,2957.0,2956.2,3.383]
[1766470919339,2.26636303,2957.0,2955.5,40.8]
[1766470919541,3.38807159,2957.1,2956.1,3.38568125]
[1766470919737,3.38807159,2957.1,2956.3,0.00507159]
[1766470920045,3.38807159,2957.1,2956.4,3.383]
[1766470920730,3.38807159,2957.1,2956.4,9.834]
[1766470920933,0.00507159,2957.1,2956.4,9.834]
[1766470921131,0.00271161,2957.7,2956.4,9.834]
[1766470921444,2.26636303,2957.3,2956.5,6.451]
[1766470921641,2.26636303,2957.0,2956.3,0.00507159]
[1766470921844,3.383,2956.9,2956.1,0.00268125]
[1766470922248,0.1692,2957.2,2956.2,3.383]
[1766470922848,0.00507159,2957.0,2956.4,0.00507159]
[1766470923140,0.00507159,2957.0,2956.5,3.383]
[1766470923340,3.383,2957.4,2956.5,3.383]
[1766470923746,3.383,2957.4,2956.4,0.00507159]
[1766470923951,2.26636303,2957.3,2956.4,3.38807159]
[1766470924339,0.00507159,2957.1,2956.4,3.38807159]
[1766470925343,9.25671161,2957.7,2956.4,3.38807159]
[1766470925750,0.00271161,2957.7,2956.5,2.26636303]
[1766470926747,3.383,2958.5,2956.6,44.49997995]
[1766470926943,2.26636303,2957.6,2956.6,44.49997995]
[1766470927147,2.26636303,2957.6,2956.4,0.00507159]
[1766470927347,2.26636303,2957.6,2956.7,3.383]
[1766470927549,0.00288937,2957.6,2956.7,3.383]
[1766470932950,0.00288937,2957.6,2956.8,3.383]
[1766470933146,2.26636303,2957.0,2956.4,0.00507159]
[1766470933345,2.26636303,2956.6,2956.1,3.38568125]
[1766470933549,2.26636303,2956.6,2956.1,2.79072068]
[1766470933949,2.26636303,2956.6,2954.6,4.21060156]
[1766470933950,2.26636303,2956.6,2955.0,3.00757254]
[1766470934145,2.26636303,2956.6,2955.2,40.8]
[1766470934349,2.26636303,2956.6,2955.6,0.00507159]
[1766470934557,2.26636303,2956.6,2955.6,0.00830709]
[1766470934856,2.26636303,2956.6,2955.7,9.833]
[1766470935050,2.26636303,2956.6,2955.6,0.00830709]
[1766470935258,2.26636303,2955.9,2955.2,3.383]
[1766470935457,5.64936303,2955.9,2955.2,3.383]
[1766470936252,0.00507159,2955.8,2955.3,0.00507159]
[1766470939357,0.00507159,2955.8,2955.2,0.00293492]
[1766470939663,2.26636303,2955.6,2954.8,3.384]
[1766470939953,3.384,2955.5,2954.5,3.384]
[1766470940358,3.384,2955.5,2954.7,0.00507159]
[1766470940563,3.38687629,2955.5,2954.7,0.00507159]
[1766470941351,3.38687629,2955.5,2954.5,0.00375975]
[1766470941551,2.57280545,2954.8,2952.5,0.16946]
[1766470941760,9.256,2954.7,2952.6,11.958]
[1766470942461,0.00507159,2953.9,2953.4,0.00507159]
[1766470942658,0.00507159,2953.9,2953.5,3.384]
[1766470942861,3.384,2954.3,2953.5,3.384]
[1766470943860,0.00507159,2954.2,2953.5,3.384]
[1766470944061,3.384,2954.6,2953.5,3.384]
[1766470944258,3.384,2954.9,2953.5,3.384]
[1766470945152,0.00507159,2954.5,2953.6,9.836]
[1766470945359,3.384,2954.9,2953.6,9.836]
[1766470948062,3.384,2954.9,2953.7,9.837]
[1766470949964,3.385,2955.3,2953.7,9.837]
[1766470950362,8.464,2956.3,2953.9,2.57280545]
[1766470950567,3.385,2955.9,2954.0,11.849]
[1766470950766,3.385,2955.9,2954.0,15.56895432]
[1766470950964,3.385,2955.9,2954.1,40.8]
[1766470951369,3.385,2955.9,2954.2,6.452]
[1766470951566,3.38782317,2955.9,2954.3,3.385]
[1766470952168,3.38782317,2955.9,2954.1,40.8]
[1766470952663,3.38782317,2955.9,2954.2,18.306]
[1766470953063,3.38782317,2955.9,2954.1,40.8]
[1766470953268,3.38782317,2955.9,2954.2,18.308]
[1766470954166,3.38782317,2955.9,2954.1,40.8]
[1766470954371,3.38782317,2955.9,2954.2,18.312]
[1766470954565,3.38782317,2955.9,2954.1,40.8]
[1766470954865,3.38782317,2955.9,2954.3,6.464]
[1766470955072,2.57280545,2955.8,2954.4,3.385]
[1766470955370,2.57280545,2955.8,2954.5,3.385]
[1766470956364,3.38782317,2955.9,2954.5,3.385]
[1766470956365,0.00282317,2955.9,2954.5,3.385]
[1766470956566,0.00282317,2955.9,2954.9,0.00507159]
[1766470956766,0.00282317,2955.9,2955.0,6.976]
[1766470958169,0.00282317,2955.9,2954.9,0.00816427]
[1766470958375,0.00282317,2955.9,2955.1,6.464]
[1766470958574,0.00282317,2955.9,2954.9,0.00816427]
[1766470958775,2.57280545,2955.8,2955.0,3.385]
[1766470958975,9.259,2955.7,2954.6,3.385]
[1766470959668,9.259,2955.7,2954.3,5.492]
[1766470959868,9.259,2955.7,2953.8,40.8]
[1766470960172,0.00507159,2955.0,2954.5,0.00507159]
[1766470960373,0.00507159,2955.0,2953.9,9.848]
[1766470960374,3.39007159,2955.0,2954.2,3.385]
[1766470961175,3.39007159,2955.0,2954.0,6.464]
[1766470961368,2.57280545,2954.9,2954.2,0.00507159]
[1766470961564,2.57280545,2954.9,2953.8,0.0039761]
[1766470962676,2.57280545,2954.9,2954.1,0.00507159]
[1766470963071,0.16933,2954.8,2952.1,33.857]
[1766470963267,2.57280545,2954.4,2952.5,8.464]
[1766470963469,3.385,2954.3,2952.6,3.385]
[1766470963669,3.385,2954.2,2952.7,40.8]
[1766470963871,3.385,2954.1,2952.8,6.463]
[1766470964069,3.385,2954.1,2953.2,0.00507159]
[1766470964270,2.57280545,2954.0,2953.2,0.00507159]
[1766470964472,8.464,2953.9,2952.8,3.38738755]
[1766470964777,2.57280545,2953.6,2952.5,3.385]
[1766470965077,3.386,2953.5,2952.5,3.385]
[1766470965578,0.00507159,2953.3,2952.7,0.00507159]
[1766470965979,3.386,2953.2,2952.7,0.00507159]
[1766470966174,3.386,2953.2,2952.5,0.0038914]
[1766470966576,5.875,2953.8,2952.6,6.463]
[1766470966783,5.875,2953.8,2952.7,3.386]
[1766470967082,5.875,2953.8,2952.5,0.0038914]
[1766470967289,5.875,2953.8,2952.6,9.849]
[1766470967676,0.00507159,2953.5,2952.9,0.00507159]
[1766470967880,0.00507159,2953.5,2953.0,3.386]
[1766470968275,3.386,2954.3,2953.0,3.386]
[1766470968483,3.386,2954.3,2952.9,0.00507159]
[1766470968886,2.57280545,2954.2,2953.0,3.386]
[1766470969077,2.57280545,2954.2,2952.5,0.0038914]
[1766470969078,2.74219545,2953.8,2952.5,0.0038914]
[1766470969379,11.852,2953.7,2952.5,0.0038914]
[1766470969583,3.386,2953.7,2952.5,40.8038914]
[1766470969778,0.00317948,2953.8,2952.5,49.2698914]
[1766470969975,0.00317948,2953.8,2952.6,6.464]
[1766470970181,0.00317948,2953.8,2952.5,40.8038914]
[1766470970182,0.00507159,2953.5,2952.9,0.00507159]
[1766470970980,3.38917948,2953.8,2952.9,0.00507159]
[1766470971582,0.00317948,2953.8,2952.9,0.00507159]
[1766470971775,3.386,2954.1,2952.9,0.00507159]
[1766470971979,0.00507159,2953.8,2952.9,0.00507159]
[1766470972179,0.00507159,2953.8,2953.0,3.386]
[1766470972486,0.00507159,2953.8,2953.1,3.387]
[1766470972685,0.00940439,2953.8,2953.1,3.387]
[1766470973079,3.387,2953.7,2953.0,3.387]
[1766470973279,3.387,2953.7,2952.9,0.00507159]
[1766470975478,3.387,2953.7,2952.6,3.387]
[1766470975479,9.264,2953.7,2952.6,3.387]
[1766470976086,9.264,2953.7,2952.5,0.0038914]
[1766470976586,9.264,2953.7,2952.8,0.00507159]
[1766470977186,3.387,2953.6,2952.8,3.39207159]
[1766470978488,2.57280545,2953.4,2952.5,0.0038914]
[1766470978681,3.387,2953.3,2952.5,0.0038914]
[1766470978886,3.387,2953.2,2952.5,0.0038914]
[1766470979590,3.387,2953.2,2952.6,0.00338108]
[1766470979790,3.387,2953.2,2952.7,3.387]
[1766470980488,3.387,2953.2,2952.6,0.00338108]
[1766470980689,2.57280545,2952.8,2950.7,8.63756]
[1766470980887,3.387,2952.7,2950.8,9.213]
[1766470981090,3.387,2952.7,2950.9,40.8]
[1766470981689,2.57280545,2952.0,2950.9,0.00377372]
[1766470981884,2.57280545,2952.0,2950.7,3.387]
[1766470981885,2.57280545,2951.8,2950.7,3.387]
[1766470982085,7.52,2951.9,2950.8,3.387]
[1766470982683,7.52,2951.9,2950.7,3.387]
[1766470982889,7.52,2951.9,2950.7,3.3908244]
[1766470983090,0.00508026,2952.1,2950.7,44.1908244]
[1766470983291,0.00508026,2952.1,2950.8,6.463]
[1766470983597,3.387,2952.0,2950.8,9.85]
[1766470983892,3.388,2953.1,2950.9,44.69656516]
[1766470984089,5.96080545,2953.1,2950.9,44.69656516]
[1766470984290,2.57280545,2952.7,2950.9,40.8]
[1766470984489,3.388,2952.6,2951.0,9.852]
[1766470984896,0.00508026,2952.1,2951.5,0.00508026]
[1766470985198,0.00508026,2952.1,2951.5,3.39308026]
[1766470985902,3.388,2953.1,2951.6,6.466]
[1766470986101,3.388,2953.1,2951.7,3.388]
[1766470986102,2.57280545,2952.8,2951.7,3.388]
[1766470986396,3.388,2952.7,2951.5,0.00508026]
[1766470986591,9.267,2952.7,2951.5,0.00508026]
[1766470986792,2.57280545,2952.4,2951.2,3.388]
[1766470986993,11.858,2952.3,2950.8,6.466]
[1766470987193,11.858,2952.3,2950.7,0.0038244]
[1766470987194,2.57280545,2952.0,2950.9,3.388]
[1766470987386,3.388,2951.9,2950.9,3.388]
[1766470987585,3.388,2951.9,2950.8,3.388]
[1766470987790,0.00508026,2951.6,2950.8,3.388]
[1766470987993,3.39692705,2951.6,2950.8,3.388]
[1766470988397,3.39692705,2951.6,2950.7,0.0038244]
[1766470988596,3.39692705,2951.6,2950.7,3.3918244]
[1766470991098,5.9697325,2951.6,2950.7,3.3918244]
[1766470991397,3.39692705,2951.6,2950.7,3.3918244]
[1766470992299,0.00892705,2951.6,2950.7,0.0038244]
[1766470992494,0.00892705,2951.6,2950.8,3.389]
[1766470993095,3.39792705,2951.6,2950.9,3.389]
[1766470994601,0.00892705,2951.6,2950.9,3.389]
[1766470994805,3.389,2951.9,2951.0,0.00508026]
[1766470995605,3.389,2951.9,2951.1,3.389]
[1766470995799,0.00508026,2951.8,2951.1,3.389]
[1766470996902,0.16941,2953.4,2951.1,3.389]
[1766470997102,2.57280545,2953.2,2951.1,3.389]
[1766470997501,2.57280545,2952.8,2951.1,3.389]
[1766470997701,2.57280545,2952.8,2951.2,9.853]
[1766470997702,3.389,2952.7,2951.2,9.853]
[1766470997907,0.00328577,2952.7,2951.2,9.853]
[1766470998112,3.389,2953.3,2951.2,9.853]
[1766470998407,0.03567,2953.1,2951.3,40.8]
[1766470998910,3.389,2953.5,2951.5,0.16952]
[1766470999101,3.39333128,2953.5,2951.6,37.283]
[1766470999302,3.39333128,2953.5,2951.8,2.57280545]
[1766470999503,0.036,2953.7,2951.8,2.57280545]
[1766470999504,11.04580545,2954.4,2951.9,18.328]
[1766470999806,5.71,2954.3,2951.9,21.87398009]
[1766471000014,0.00508026,2953.4,2952.8,0.00508026]
[1766471000202,3.389,2953.8,2952.9,3.389]
[1766471000399,3.389,2953.8,2952.9,3.39211719]
[1766471000599,3.39142437,2953.8,2952.9,3.39211719]
[1766471001000,3.39142437,2953.8,2952.9,0.00311719]
[1766471001307,2.57280545,2953.5,2952.1,3.389]
[1766471001613,0.00508026,2953.6,2952.1,3.389]
[1766471001902,3.389,2953.5,2952.1,3.389]
[1766471002103,0.00508026,2953.6,2952.5,0.00508026]
[1766471002302,3.39408026,2953.6,2952.6,9.854]
[1766471002501,0.00508026,2953.6,2952.6,9.854]
[1766471002899,0.00508026,2953.6,2952.5,0.00508026]
[1766471003106,0.00508026,2953.6,2952.6,9.854]
[1766471004104,2.437e-05,2953.8,2952.6,9.854]
[1766471004306,2.437e-05,2953.8,2952.8,2.2728469]
[1766471004513,2.437e-05,2953.8,2952.9,3.388]
[1766471005013,0.00508026,2953.6,2953.0,8.472]
[1766471005313,3.388,2954.5,2953.1,6.464]
[1766471005514,3.388,2954.8,2953.2,3.388]
[1766471005813,3.39140024,2954.8,2953.2,3.388]
[1766471006315,0.00340024,2954.8,2953.3,40.8]
[1766471006710,2.2728469,2954.5,2953.4,9.854]
[1766471006914,3.388,2954.5,2953.4,9.854]
[1766471007114,0.00340024,2954.8,2953.4,9.854]
[1766471007614,2.4e-07,2954.8,2953.4,9.854]
[1766471008210,2.4e-07,2954.8,2953.6,2.2728469]
[1766471008408,2.4e-07,2954.8,2953.7,3.388]
[1766471008608,2.4e-07,2954.8,2953.8,6.469]
[1766471008806,2.4e-07,2954.8,2954.0,0.00508026]
[1766471009010,2.4e-07,2954.8,2954.1,3.388]
[1766471009309,1.79964389,2957.8,2954.2,6.468]
[1766471009510,5.6608469,2955.9,2954.2,6.468]
[1766471009820,3.387,2955.9,2954.2,8.7408469]
[1766471010116,3.387,2956.2,2954.5,2.2728469]
[1766471010315,5.6636958,2956.2,2954.5,0.00305613]
[1766471010517,2.2728469,2955.6,2954.5,0.00305613]
[1766471010712,2.2728469,2955.3,2954.6,3.387]
[1766471011013,2.2728469,2955.3,2954.0,0.00508026]
[1766471011206,2.2728469,2955.3,2954.1,3.387]
[1766471012117,2.2728469,2955.3,2954.1,3.39012975]
[1766471014315,2.2728469,2955.0,2954.1,3.39012975]
[1766471014619,3.387,2954.9,2954.1,3.39012975]
[1766471015016,2.2728469,2954.4,2953.3,40.8]
[1766471015219,2.2728469,2954.4,2953.4,9.852]
[1766471015909,2.2728469,2954.4,2953.5,6.468]
[1766471016111,0.00508025,2954.2,2953.7,0.00508026]
[1766471016413,2.2728469,2954.1,2953.5,0.00368083]
[1766471016620,0.00291132,2954.1,2953.5,0.00368083]
[1766471017117,2.2728469,2953.7,2952.8,40.8]
[1766471017310,5.6598469,2953.7,2952.9,3.387]
[1766471017512,2.2728469,2953.4,2952.6,3.387]
[1766471017712,5.6598469,2953.7,2952.7,3.387]
[1766471018015,5.6598469,2953.7,2952.7,3.38970937]
[1766471018413,3.387,2953.7,2952.7,3.38970937]
[1766471018620,2.2728469,2953.8,2952.9,0.00508026]
[1766471018822,0.00291132,2954.1,2953.0,7.729]
[1766471019114,3.38991132,2954.1,2953.1,9.858]
[1766471019313,3.38991132,2954.1,2953.2,3.387]
[1766471019827,2.2728469,2953.7,2952.9,0.00508026]
[1766471020216,2.2728469,2953.7,2953.0,3.387]
[1766471020415,3.387,2953.8,2953.0,3.387]
[1766471020719,3.387,2953.8,2953.1,3.387]
[1766471021024,2.2728469,2953.7,2952.9,0.00508026]
[1766471021208,2.2728469,2952.9,2952.2,3.387]
[1766471021409,3.387,2953.0,2952.2,3.387]
[1766471021807,0.1694,2953.7,2952.2,3.387]
[1766471022021,2.2728469,2953.4,2952.2,3.387]
[1766471022221,3.387,2953.3,2952.5,0.00508026]
[1766471023613,2.4422469,2953.7,2952.6,3.387]
[1766471023913,2.2728469,2953.4,2951.3,0.16953]
[1766471024120,2.2728469,2953.0,2951.4,11.968]
[1766471024315,3.387,2953.0,2951.4,11.968]
[1766471025012,0.00508026,2952.5,2951.9,0.00508026]
[1766471025212,0.00508026,2952.5,2952.0,3.387]
[1766471025608,0.00508026,2952.5,2952.0,9.857]
[1766471025819,3.387,2953.0,2952.0,9.857]
[1766471026215,3.387,2953.3,2952.0,9.857]
[1766471027312,2.2728469,2953.4,2952.0,9.857]
[1766471027313,2.2728469,2953.7,2952.0,9.857]
[1766471027519,3.387,2953.4,2952.0,9.857]
[1766471027918,0.00291132,2954.1,2952.1,6.04550258]
[1766471028115,3.387,2953.9,2952.2,8.469]
[1766471028316,2.2728469,2953.7,2952.3,3.387]
[1766471028716,2.2728469,2953.7,2951.9,0.00508026]
[1766471028917,0.00508026,2953.1,2952.0,18.327]
[1766471029823,3.387,2953.6,2952.0,18.327]
[1766471031924,0.00291132,2954.1,2952.3,2.2728469]
[1766471032114,3.387,2954.0,2952.4,9.863]
[1766471032310,0.00291132,2954.1,2952.7,2.2728469]
[1766471032517,0.00291132,2954.1,2952.8,59.132]
[1766471032914,3.387,2954.3,2953.0,2.2728469]
[1766471033115,3.387,2954.4,2953.4,0.00508026]
[1766471033420,3.387,2954.4,2953.5,3.387]
[1766471034013,0.00431454,2954.4,2953.5,3.38937965]
[1766471034310,3.387,2954.6,2953.5,3.38937965]
[1766471034510,2.2728469,2955.7,2953.8,0.00508026]
[1766471034714,3.387,2955.6,2954.1,2.2728469]
[1766471034916,3.387,2955.5,2954.2,3.387]
[1766471035114,3.387,2955.5,2954.3,6.476]
[1766471035311,3.39136298,2955.5,2954.3,6.476]
[1766471038016,3.39136298,2955.5,2953.8,2.27792716]
[1766471038017,2.2728469,2955.4,2954.4,40.8]
[1766471038213,2.2728469,2955.4,2954.5,3.387]
[1766471038417,2.2728469,2955.4,2954.4,3.387]
[1766471038918,2.2728469,2955.1,2953.8,0.00508026]
[1766471039122,2.2728469,2955.1,2953.9,3.387]
[1766471039322,3.387,2955.0,2953.9,3.387]
[1766471040414,0.1694,2953.6,2951.1,0.16954]
[1766471040723,2.2728469,2952.5,2951.4,3.387]
[1766471040923,3.387,2952.5,2951.5,40.8]
[1766471041421,0.00508026,2952.3,2951.7,0.00508026]
[1766471042724,0.00508026,2952.3,2951.7,3.39208026]
[1766471043327,3.387,2952.7,2951.7,3.39208026]
[1766471043523,2.2728469,2953.3,2951.7,3.39208026]
[1766471043728,3.387,2953.2,2951.7,5.66492716]
[1766471043926,0.16935,2954.5,2951.8,40.8]
[1766471044133,2.2728469,2954.1,2952.0,2.2728469]
[1766471044319,2.2728469,2953.8,2952.9,0.00508026]
[1766471045628,2.2728469,2954.0,2952.9,0.00508026]
[1766471045830,9.265,2953.9,2952.9,0.00508026]
[1766471046531,9.265,2953.9,2952.7,3.33608026]
[1766471046730,3.387,2953.8,2952.7,3.33608026]
[1766471047235,3.387,2953.7,2952.7,3.33608026]
[1766471047438,2.2728469,2954.0,2952.7,3.33608026]
[1766471047726,0.00508026,2953.6,2953.1,0.00508026]
[1766471048123,3.387,2953.7,2953.1,0.00508026]
[1766471049040,2.2728469,2954.0,2953.1,0.00508026]
[1766471049229,3.387,2953.9,2953.1,0.00508026]
[1766471049943,2.2728469,2954.0,2953.1,0.00508026]
[1766471050243,3.387,2953.9,2953.1,0.00508026]
[1766471050846,3.387,2953.9,2952.9,3.387]
[1766471050847,2.2728469,2953.7,2952.9,3.387]
[1766471051046,3.387,2953.6,2952.9,3.387]
[1766471051944,0.00508026,2953.5,2953.0,0.00508026]
[1766471053142,4.5456938,2953.2,2950.2,3.02362231]
[1766471053349,2.2728469,2951.3,2949.7,3.387]
[1766471053645,2.4423369,2952.0,2949.8,44.187]
[1766471053646,3.387,2951.2,2949.8,44.187]
[1766471053949,0.16949,2952.0,2949.9,3.387]
[1766471054142,0.00508026,2951.2,2950.7,0.00508026]
[1766471054946,3.387,2951.5,2950.7,0.00508026]
[1766471055243,0.00299292,2952.0,2950.7,0.00508026]
[1766471055445,3.388,2951.9,2950.7,0.00508026]
[1766471055637,3.388,2951.8,2950.7,0.00508026]
[1766471056241,0.00299292,2952.0,2950.7,0.00508026]
[1766471057046,0.00299292,2952.0,2950.9,2.2728469]
[1766471057341,2.2728469,2953.1,2951.1,2.2728469]
[1766471057548,3.388,2953.0,2951.2,6.475]
[1766471057749,2.2728469,2952.8,2951.2,18.334]
[1766471058136,3.388,2952.7,2951.2,18.334]
[1766471058338,0.00309954,2952.8,2951.2,18.334]
[1766471058549,3.388,2952.6,2951.2,18.334]
[1766471058741,0.00309954,2952.8,2951.2,18.334]
[1766471058946,0.00309954,2952.8,2951.3,3.62905613]
[1766471059246,0.00309954,2952.8,2951.4,40.8]
[1766471059448,0.00309954,2952.8,2951.5,3.388]
[1766471059949,2.2728469,2952.6,2951.5,3.388]
[1766471060147,2.2728469,2952.3,2950.7,0.06403953]
[1766471060345,3.388,2952.2,2950.8,11.901]
[1766471060745,3.388,2952.2,2950.9,40.8]
[1766471066955,0.00309954,2952.8,2950.9,40.8]
[1766471067158,5.499,2952.6,2950.9,40.8]
[1766471068053,8.07676479,2952.6,2950.9,40.8]
[1766471068653,2.57776479,2952.2,2950.8,3.43]
[1766471068856,2.57776479,2951.8,2950.7,0.00508026]
[1766471069058,2.57776479,2951.4,2950.0,3.389]
[1766471069259,3.389,2951.3,2950.0,3.389]
[1766471069952,3.389,2951.2,2950.0,3.389]
[1766471070153,0.00508026,2950.9,2950.3,0.00508026]
[1766471070351,5.881,2951.7,2950.3,9.87608026]
[1766471070549,3.389,2951.6,2950.3,9.87608026]
[1766471070753,5.96676479,2951.6,2950.3,0.00508026]
[1766471070947,2.57776479,2950.4,2948.9,3.389]
[1766471071160,9.27,2950.3,2948.9,3.389]
[1766471071950,0.00508026,2949.9,2949.3,0.00508026]
[1766471072461,3.389,2950.0,2949.3,0.00508026]
[1766471072951,3.389,2950.0,2948.9,0.00373165]
[1766471073354,9.27,2949.9,2948.9,0.00373165]
[1766471073552,3.389,2949.8,2948.9,0.00373165]
[1766471073956,0.00508026,2949.6,2949.1,0.00508026]
[1766471074150,3.389,2949.5,2949.1,0.00508026]
[1766471074859,3.389,2949.5,2949.1,0.00908738]
[1766471075060,0.00508026,2949.6,2949.1,0.00908738]
[1766471075257,3.39508026,2949.6,2949.1,0.00508026]
[1766471076259,3.39508026,2949.6,2948.9,0.00373165]
[1766471076849,3.39,2949.5,2949.0,0.00400712]
[1766471077049,3.39,2949.4,2949.0,0.00908738]
[1766471077252,0.00508026,2949.6,2949.0,0.00908738]
[1766471077658,0.00508026,2949.6,2949.0,0.00508026]
[1766471077852,0.00508026,2949.6,2949.0,0.00908738]
[1766471078257,1.76516887,2949.7,2949.0,3.39908738]
[1766471078558,3.39,2950.0,2949.0,9.88308738]
[1766471079264,0.00508026,2949.8,2949.0,9.88308738]
[1766471079465,0.00508026,2949.8,2949.0,0.00508026]
[1766471079662,3.391,2949.7,2949.0,3.39608026]
[1766471080666,3.391,2949.7,2949.0,0.00508026]
[1766471080857,0.00508026,2949.8,2949.1,3.391]
[1766471083568,0.00508026,2949.8,2948.0,3.391]
[1766471083569,2.5807002,2949.5,2948.0,3.391]
[1766471083765,3.391,2949.4,2948.1,3.391]
[1766471084367,3.391,2949.4,2948.5,0.00508026]
[1766471084561,3.391,2949.4,2948.6,3.391]
[1766471086065,3.391,2949.4,2948.1,0.00431694]
[1766471086270,2.5807002,2948.5,2946.7,3.391]
[1766471086459,9.276,2948.4,2946.7,3.391]
[1766471086659,9.276,2948.4,2946.7,44.191]
[1766471086865,3.391,2948.5,2946.8,3.90483583]
[1766471087064,0.00508897,2947.9,2947.4,0.00508897]
[1766471087267,0.00762544,2947.9,2947.5,3.391]
[1766471087569,2.5807002,2947.8,2946.3,3.391]
[1766471087770,3.391,2947.7,2946.3,3.391]
[1766471087965,3.391,2947.7,2945.8,40.8]
[1766471088164,3.391,2947.7,2945.1,0.20101407]
[1766471088367,3.391,2947.7,2946.3,0.00508897]
[1766471088560,3.391,2947.7,2946.4,3.392]
[1766471089070,0.00762544,2947.9,2946.4,11.872]
[1766471089268,3.392,2947.8,2946.5,6.484]
[1766471089464,3.392,2947.8,2946.6,3.392]
[1766471089663,3.392,2947.8,2946.5,6.484]
[1766471089664,3.392,2947.8,2946.7,6.484]
[1766471089860,3.392,2947.8,2946.8,3.392]
[1766471090260,0.00762544,2947.9,2946.8,3.392]
[1766471091086,2.5807002,2949.4,2946.8,3.392]
[1766471091262,3.392,2949.7,2946.9,3.80085136]
[1766471091461,3.392,2949.6,2946.9,3.80085136]
[1766471091672,3.392,2949.5,2947.0,52.288]
[1766471092062,3.39591865,2949.5,2947.0,52.288]
[1766471092267,3.39591865,2949.5,2948.0,0.00508897]
[1766471092467,3.39591865,2949.5,2948.1,9.877]
[1766471092676,3.39591865,2949.5,2948.1,6.485]
[1766471092875,3.39591865,2949.5,2948.0,0.00928894]
[1766471093082,3.39591865,2949.5,2948.1,3.392]
[1766471093268,0.00508897,2949.0,2948.1,3.392]
[1766471093576,3.39708897,2949.0,2948.1,3.392]
[1766471094374,0.00508897,2949.0,2948.1,3.392]
[1766471095272,3.393,2949.3,2948.1,3.392]
[1766471095773,0.00391865,2949.5,2948.1,3.392]
[1766471095972,0.00391865,2949.5,2948.0,0.00928894]
[1766471096166,0.00391865,2949.5,2948.1,5.647]
[1766471096376,0.00508897,2949.1,2948.1,5.647]
[1766471097186,0.00508897,2949.1,2948.0,0.00928894]
[1766471097379,0.00508897,2949.1,2948.1,9.876]
[1766471097575,0.00508897,2949.1,2948.2,3.393]
[1766471098378,0.00508897,2949.1,2948.3,3.393]
[1766471098575,0.00508897,2949.1,2948.0,0.00928894]
[1766471098766,3.393,2949.0,2948.0,0.00928894]
[1766471098969,9.28,2949.0,2947.7,3.393]
[1766471099274,8.482,2948.9,2947.0,40.8]
[1766471099477,3.393,2948.9,2947.1,6.483]
[1766471099670,3.393,2948.9,2947.1,18.358]
[1766471099977,3.393,2948.9,2947.7,0.00508897]
[1766471100275,3.393,2948.9,2947.8,3.393]
[1766471100472,0.00508897,2949.1,2947.7,0.00508897]
[1766471100675,3.393,2949.0,2947.7,0.00508897]
[1766471100876,3.393,2949.0,2947.4,3.393]
[1766471101076,2.5807002,2948.7,2947.4,2.4399]
[1766471101276,17.762,2948.6,2947.4,2.4399]
[1766471101477,17.762,2948.6,2947.1,0.00254157]
[1766471101679,17.762,2948.6,2947.2,3.393]
[1766471101878,17.762,2948.6,2947.2,5.639]
[1766471102080,9.28,2948.6,2947.6,0.00508897]
[1766471102385,3.393,2948.6,2947.7,5.275]
[1766471102783,3.393,2948.9,2947.7,5.275]
[1766471103178,0.00508897,2949.1,2947.7,5.275]
[1766471103383,0.00508897,2949.1,2947.6,0.00508897]
[1766471103384,2.5807002,2948.9,2947.6,0.00508897]
[1766471103583,2.5807002,2948.9,2947.1,0.00254157]
[1766471103584,0.16969,2948.6,2947.1,0.00254157]
[1766471103883,17.323,2948.5,2947.1,0.00254157]
[1766471104180,17.323,2948.5,2947.2,3.393]
[1766471104683,3.39808897,2949.1,2947.6,0.00508897]
[1766471105179,3.39808897,2949.1,2947.7,6.971]
[1766471105577,3.39808897,2949.1,2947.6,0.00508897]
[1766471105983,3.39808897,2949.1,2947.7,3.396]
[1766471106376,3.39808897,2949.1,2947.6,0.00508897]
[1766471106682,0.16967,2948.9,2947.7,3.393]
[1766471106880,9.44967,2948.8,2947.6,0.00508897]
[1766471107280,11.0637002,2948.7,2947.6,3.39808897]
[1766471107582,11.0637002,2948.7,2947.1,0.00254157]
[1766471107583,11.0637002,2948.7,2947.3,3.393]
[1766471107779,0.16969,2948.5,2947.1,0.00254157]
[1766471107979,3.5627,2948.4,2947.2,3.393]
[1766471108174,3.5627,2948.4,2947.3,3.393]
[1766471108376,3.5627,2948.4,2947.6,0.00508897]
[1766471109086,3.393,2948.4,2947.6,8.97e-06]
[1766471109382,3.393,2948.4,2947.1,3.19824157]
[1766471109383,0.16972,2948.1,2947.1,3.19824157]
[1766471109570,3.393,2948.0,2947.1,3.19824157]
[1766471110180,3.393,2948.0,2947.3,0.00338977]
[1766471110376,3.393,2948.0,2947.3,0.00247733]